bitfinex-derivatives/quotes_BTCF0:USTF0_20240902
["timestamp","ask_amount","ask_price","bid_price","bid_amount"]
[1725274035680,0.12016,58447.0,58446.0,0.00025651]
[1725274035882,0.11976,58447.0,58446.0,0.00025651]
[1725274036289,0.17864,58447.0,58446.0,0.00025651]
[1725274036482,0.17764,58447.0,58446.0,0.00025651]
[1725274036683,0.17764,58447.0,58446.0,0.05155806]
[1725274037078,0.18464,58447.0,58446.0,0.05255806]
[1725274037295,1.29792,58447.0,58446.0,0.00125651]
[1725274037589,0.119772,58441.0,58440.0,0.05130155]
[1725274037791,0.119772,58441.0,58439.0,0.05130155]
[1725274037792,0.119774,58440.0,58439.0,0.05130155]
[1725274037983,0.2187573,58440.0,58439.0,0.05130155]
[1725274038187,0.059888,58439.0,58438.0,0.05130155]
[1725274038500,0.210176,58439.0,58438.0,0.05130155]
[1725274038697,0.119778,58438.0,58437.0,0.05130155]
[1725274038888,0.059892,58435.0,58434.0,0.11781684]
[1725274039089,0.150292,58435.0,58434.0,0.11781684]
[1725274039394,0.149892,58435.0,58434.0,0.0494]
[1725274039890,0.059892,58435.0,58434.0,0.11781684]
[1725274040091,0.059892,58435.0,58434.0,0.0494]
[1725274040288,0.059892,58435.0,58434.0,0.5628]
[1725274040490,0.0004,58438.0,58434.0,0.5628]
[1725274040685,0.0004,58438.0,58437.0,0.21820012]
[1725274040989,0.0004,58438.0,58437.0,0.21860012]
[1725274041190,0.3632,58441.0,58437.0,0.28069028]
[1725274041396,0.423086,58441.0,58440.0,0.0004]
[1725274041780,0.421086,58441.0,58440.0,0.0004]
[1725274042293,0.58425722,58441.0,58440.0,0.0004]
[1725274042594,0.65252286,58441.0,58440.0,0.0004]
[1725274042893,0.65452457,58441.0,58440.0,0.0004]
[1725274043091,0.66452457,58441.0,58440.0,0.0004]
[1725274043296,0.66452457,58441.0,58440.0,0.06868919]
[1725274044493,0.65614322,58441.0,58440.0,0.06868919]
[1725274045095,0.66452971,58441.0,58440.0,0.06868919]
[1725274046393,0.66452971,58441.0,58440.0,0.0004]
[1725274046595,1.83777571,58441.0,58440.0,0.0004]
[1725274046798,1.93777571,58441.0,58440.0,0.0004]
[1725274048003,0.119778,58438.0,58437.0,0.05121397]
[1725274048300,0.250178,58438.0,58437.0,0.05121397]
[1725274048500,0.250178,58438.0,58433.0,0.0685457]
[1725274048501,0.11978,58437.0,58436.0,0.05121397]
[1725274048697,0.28018,58437.0,58436.0,0.05121397]
[1725274049001,0.059893,58434.0,58433.0,0.0685457]
[1725274049302,0.421093,58434.0,58433.0,0.00025651]
[1725274049695,0.480986,58434.0,58433.0,0.00025651]
[1725274049996,0.421093,58434.0,58433.0,0.00025651]
[1725274050214,0.421093,58434.0,58433.0,0.05145698]
[1725274050499,0.421093,58434.0,58433.0,0.05445698]
[1725274050699,0.42463592,58434.0,58433.0,0.00325651]
[1725274050892,0.42463592,58434.0,58433.0,0.11215051]
[1725274051204,0.42463592,58434.0,58433.0,0.05225651]
[1725274051695,0.43063592,58434.0,58433.0,0.05225651]
[1725274052601,0.43063592,58434.0,58433.0,0.00325651]
[1725274053197,0.49052892,58434.0,58433.0,0.00325651]
[1725274053406,0.43063592,58434.0,58433.0,0.00325651]
[1725274053589,0.49052892,58434.0,58433.0,0.00325651]
[1725274055000,0.55042192,58434.0,58433.0,0.00325651]
[1725274055501,0.55942192,58434.0,58433.0,0.00025651]
[1725274055690,0.49952892,58434.0,58433.0,0.00025651]
[1725274055891,0.61942192,58434.0,58433.0,0.00025651]
[1725274056794,0.55952892,58434.0,58433.0,0.00025651]
[1725274056999,0.61942192,58434.0,58433.0,0.00025651]
[1725274057801,0.55952892,58434.0,58433.0,0.00025651]
[1725274058106,0.61942192,58434.0,58433.0,0.00025651]
[1725274059009,0.55952892,58434.0,58433.0,0.00025651]
[1725274059197,0.65952892,58434.0,58433.0,0.00025651]
[1725274060308,0.49952892,58434.0,58433.0,0.00025651]
[1725274060495,0.65952892,58434.0,58433.0,0.00025651]
[1725274060903,0.49952892,58434.0,58433.0,0.00025651]
[1725274061102,0.65952892,58434.0,58433.0,0.00025651]
[1725274067104,0.59963592,58434.0,58433.0,0.06015051]
[1725274067416,0.59963592,58434.0,58433.0,0.00025651]
[1725274068605,0.65952892,58434.0,58433.0,0.05152519]
[1725274069010,0.65952892,58434.0,58433.0,0.00025651]
[1725274071113,0.49952892,58434.0,58433.0,0.00025651]
[1725274071312,0.76952892,58434.0,58433.0,0.00025651]
[1725274071504,0.49952892,58434.0,58433.0,0.00025651]
[1725274071712,0.43963592,58434.0,58433.0,0.00025651]
[1725274072105,0.43963592,58434.0,58433.0,0.06015051]
[1725274072310,0.43963592,58434.0,58433.0,0.00025651]
[1725274079621,0.49952892,58434.0,58433.0,0.05153755]
[1725274079826,0.49952892,58434.0,58433.0,0.00025651]
[1725274082329,0.65952892,58434.0,58433.0,0.00025651]
[1725274083326,0.65952892,58434.0,58433.0,0.15025651]
[1725274083832,0.65952892,58434.0,58433.0,0.00025651]
[1725274090522,0.49952892,58434.0,58433.0,0.00025651]
[1725274090721,0.01894292,58434.0,58433.0,0.57355051]
[1725274091241,0.01894292,58434.0,58433.0,1.17355051]
[1725274092834,0.01894292,58434.0,58433.0,0.66015051]
[1725274093531,0.01894292,58434.0,58433.0,0.57355051]
[1725274093726,0.01894292,58434.0,58433.0,0.6248349]
[1725274094239,0.01894292,58434.0,58433.0,1.17355051]
[1725274094532,0.01894292,58434.0,58433.0,0.57355051]
[1725274094838,0.01894292,58434.0,58433.0,1.26555051]
[1725274095034,0.0154,58434.0,58433.0,1.26555051]
[1725274095936,0.0154,58434.0,58433.0,1.3338397]
[1725274096136,0.0154,58434.0,58433.0,1.26555051]
[1725274096746,0.00025651,58444.0,58442.0,0.059884]
[1725274097038,0.00025651,58444.0,58443.0,0.0945]
[1725274097535,0.06013951,58444.0,58443.0,0.0945]
[1725274098134,0.06413951,58444.0,58443.0,0.0945]
[1725274098341,0.06764718,58444.0,58443.0,0.0945]
[1725274098743,0.08164718,58444.0,58443.0,0.0945]
[1725274099439,0.08164718,58444.0,58443.0,0.0461]
[1725274099833,0.07864718,58444.0,58443.0,0.0471]
[1725274100448,0.43944718,58444.0,58443.0,0.0014]
[1725274100635,0.059893,58434.0,58433.0,0.00025651]
[1725274100944,0.421093,58434.0,58433.0,0.00025651]
[1725274101140,0.3612,58434.0,58433.0,0.00025651]
[1725274101539,0.581093,58434.0,58433.0,0.00025651]
[1725274101749,0.70236581,58434.0,58433.0,0.00025651]
[1725274101942,0.71136581,58434.0,58433.0,0.00125651]
[1725274102842,0.71336581,58434.0,58433.0,0.00125651]
[1725274104543,0.43357981,58434.0,58433.0,0.00125651]
[1725274104752,0.37584536,58434.0,58433.0,1.11465651]
[1725274105059,0.0114,58434.0,58433.0,1.11465651]
[1725274105254,0.0114,58434.0,58433.0,1.16325651]
[1725274105656,0.0114,58434.0,58433.0,1.22315051]
[1725274106159,0.0114,58434.0,58433.0,1.22668072]
[1725274107745,0.0114,58434.0,58433.0,0.62668072]
[1725274107950,0.0114,58434.0,58433.0,0.11328072]
[1725274108349,0.0114,58434.0,58433.0,0.62315051]
[1725274109449,0.0114,58434.0,58433.0,1.22315051]
[1725274109648,0.0114,58434.0,58433.0,0.62315051]
[1725274109845,0.0114,58434.0,58433.0,0.10100406]
[1725274111160,0.0114,58434.0,58433.0,0.61440406]
[1725274111359,0.0114,58434.0,58433.0,0.56325651]
[1725274112654,0.0114,58434.0,58433.0,0.04985651]
[1725274113147,0.071293,58434.0,58433.0,0.04985651]
[1725274114659,0.071293,58434.0,58433.0,0.10100323]
[1725274115354,0.3608,58480.0,58444.0,0.3608]
[1725274115547,0.3608,58480.0,58433.0,1.74435374]
[1725274115548,0.00096001,58468.0,58465.0,0.3608]
[1725274115748,0.16,58476.0,58467.0,0.3608]
[1725274116059,0.16,58477.0,58475.0,0.0004]
[1725274116264,0.219849,58477.0,58476.0,0.0004]
[1725274117858,1.332889,58477.0,58476.0,0.0004]
[1725274118456,2.242889,58477.0,58476.0,0.0004]
[1725274119156,2.242889,58477.0,58476.0,0.0014]
[1725274120161,2.302738,58477.0,58476.0,0.0014]
[1725274120360,2.311738,58477.0,58476.0,0.0024]
[1725274122964,1.798698,58477.0,58476.0,0.0024]
[1725274123347,2.311738,58477.0,58476.0,0.0024]
[1725274123753,2.49578973,58477.0,58476.0,0.0024]
[1725274123953,2.71783677,58477.0,58476.0,0.0024]
[1725274124465,2.77768577,58477.0,58476.0,0.0024]
[1725274125663,2.55563873,58477.0,58476.0,0.0024]
[1725274125966,0.119708,58472.0,58471.0,0.00025651]
[1725274126160,0.39396264,58472.0,58471.0,0.00025651]
[1725274126470,1.56689664,58472.0,58471.0,0.00025651]
[1725274126650,1.56689664,58472.0,58471.0,5.1e-07]
[1725274126858,2.03769664,58472.0,58471.0,5.1e-07]
[1725274127762,1.92769664,58472.0,58471.0,5.1e-07]
[1725274128058,1.92769664,58472.0,58454.0,0.3608]
[1725274128059,0.119744,58455.0,58454.0,0.3608]
[1725274128258,0.39400625,58455.0,58454.0,0.3608]
[1725274128462,0.17313425,58455.0,58454.0,0.3608]
[1725274128859,0.059859,58468.0,58454.0,1.693873]
[1725274129062,0.059856,58471.0,58468.0,0.059858]
[1725274129261,0.059856,58471.0,58467.0,0.8834]
[1725274129262,0.059858,58469.0,58467.0,0.8834]
[1725274129464,0.06134376,58468.0,58467.0,0.8816]
[1725274129770,0.06134376,58468.0,58467.0,0.7216]
[1725274130069,0.06134376,58468.0,58467.0,1.23472]
[1725274130264,0.12120176,58468.0,58467.0,0.7216]
[1725274131054,0.12020176,58468.0,58467.0,0.7216]
[1725274131258,0.11920176,58468.0,58467.0,0.7216]
[1725274131863,0.077858,58468.0,58467.0,0.7236]
[1725274135469,0.137716,58468.0,58467.0,0.7236]
[1725274136464,0.137716,58468.0,58467.0,0.3628]
[1725274137670,0.137716,58468.0,58467.0,0.002]
[1725274140580,0.137716,58468.0,58463.0,0.3608]
[1725274140581,0.179586,58464.0,58463.0,0.3608]
[1725274140765,0.339986,58464.0,58463.0,0.272236]
[1725274141872,0.347986,58464.0,58463.0,0.273236]
[1725274142077,0.359986,58464.0,58463.0,0.274236]
[1725274142775,0.36355282,58464.0,58463.0,0.274236]
[1725274143689,0.36355282,58464.0,58463.0,0.002]
[1725274150292,0.239452,58463.0,58462.0,0.00025651]
[1725274150487,0.179616,58455.0,58454.0,0.3608]
[1725274150687,0.339616,58455.0,58454.0,0.3608]
[1725274150988,1.249616,58455.0,58454.0,0.272108]
[1725274151188,0.179634,58449.0,58448.0,0.3608]
[1725274151388,0.059885,58442.0,58441.0,0.3608]
[1725274151695,0.059285,58442.0,58441.0,0.3608]
[1725274151880,0.058885,58442.0,58441.0,0.3608]
[1725274152078,0.11877,58442.0,58441.0,0.3608]
[1725274152891,0.13177,58442.0,58441.0,0.3618]
[1725274153097,0.13077,58442.0,58441.0,0.3618]
[1725274153588,0.13077,58442.0,58441.0,0.001]
[1725274153983,0.13977,58442.0,58441.0,0.002]
[1725274154390,0.14077,58442.0,58441.0,0.001]
[1725274154793,0.058889,58438.0,58437.0,0.3608]
[1725274154997,0.059289,58438.0,58437.0,0.3608]
[1725274156095,0.119178,58438.0,58437.0,0.3608]
[1725274156590,0.119178,58438.0,58437.0,0.3618]
[1725274156591,0.065289,58438.0,58437.0,0.3618]
[1725274157793,0.078289,58438.0,58437.0,0.3618]
[1725274158991,0.138178,58438.0,58437.0,0.3618]
[1725274163496,0.138178,58438.0,58437.0,0.001]
[1725274163688,0.138178,58438.0,58437.0,0.3618]
[1725274164290,0.198067,58438.0,58437.0,0.3618]
[1725274165197,0.198067,58438.0,58437.0,0.001]
[1725274165496,0.179688,58431.0,58430.0,0.3608]
[1725274165683,0.180088,58431.0,58430.0,0.3608]
[1725274166693,0.180088,58431.0,58430.0,0.3628]
[1725274167084,0.120192,58431.0,58430.0,0.3628]
[1725274167497,0.120192,58431.0,58430.0,0.3608]
[1725274167689,0.120192,58431.0,58430.0,0.3618]
[1725274168093,0.126192,58431.0,58430.0,0.3618]
[1725274168597,0.127192,58431.0,58430.0,0.3618]
[1725274169192,0.07084281,58431.0,58430.0,0.3618]
[1725274171201,0.07084281,58431.0,58430.0,0.41291789]
[1725274173493,0.07084281,58431.0,58430.0,0.3618]
[1725274175399,0.01094681,58431.0,58430.0,0.421697]
[1725274176903,0.0074,58431.0,58430.0,1.535137]
[1725274178496,0.00025651,58447.0,58442.0,0.059884]
[1725274178695,0.059883,58444.0,58443.0,0.4063]
[1725274180602,0.01578816,58447.0,58446.0,0.059881]
[1725274180899,0.01578816,58447.0,58446.0,0.220281]
[1725274181403,0.00378816,58447.0,58446.0,0.220281]
[1725274182203,0.00378816,58447.0,58446.0,0.060281]
[1725274182397,0.01778816,58447.0,58446.0,0.060281]
[1725274183107,0.01778816,58447.0,58446.0,0.421081]
[1725274183401,0.07766816,58447.0,58446.0,0.421081]
[1725274183807,0.09166816,58447.0,58446.0,0.3622]
[1725274188909,0.15154816,58447.0,58446.0,0.3622]
[1725274189123,0.37142816,58447.0,58446.0,0.0014]
[1725274189812,1.28142816,58447.0,58446.0,0.0014]
[1725274191607,1.06154816,58447.0,58446.0,0.0014]
[1725274192514,1.28142816,58447.0,58446.0,0.0014]
[1725274194407,1.64222816,58447.0,58446.0,0.0014]
[1725274194609,2.75550816,58447.0,58446.0,0.0014]
[1725274195717,2.15550816,58447.0,58446.0,0.0014]
[1725274195913,2.75550816,58447.0,58446.0,0.0014]
[1725274197519,2.15550816,58447.0,58446.0,0.0014]
[1725274197822,2.75550816,58447.0,58446.0,0.0014]
[1725274198123,2.24222816,58447.0,58446.0,0.0014]
[1725274198519,2.15550816,58447.0,58446.0,0.0014]
[1725274204014,2.15550816,58447.0,58439.0,0.3608]
[1725274204015,0.059887,58440.0,58439.0,0.3608]
[1725274204217,0.059887,58440.0,58432.0,0.3608]
[1725274204218,0.119788,58433.0,58432.0,0.41189898]
[1725274204424,0.120188,58433.0,58432.0,0.3608]
[1725274205428,0.129188,58433.0,58432.0,0.3618]
[1725274206034,0.130188,58433.0,58432.0,0.3618]
[1725274207638,0.0104,58433.0,58432.0,0.3618]
[1725274207929,0.0104,58433.0,58432.0,1.535095]
[1725274208231,0.0104,58433.0,58432.0,1.58619398]
[1725274208436,0.0104,58433.0,58432.0,1.535095]
[1725274209328,0.0104,58433.0,58432.0,0.47287518]
[1725274209517,0.0104,58433.0,58432.0,0.421695]
[1725274209724,0.070294,58433.0,58432.0,0.3618]
[1725274217235,0.070294,58433.0,58432.0,0.421695]
[1725274217948,0.0104,58433.0,58432.0,0.421695]
[1725274220622,0.0104,58433.0,58432.0,1.535095]
[1725274222140,0.0104,58433.0,58432.0,0.421695]
[1725274227939,0.0104,58433.0,58432.0,0.511695]
[1725274228529,0.070294,58433.0,58432.0,0.511695]
[1725274229444,0.070294,58433.0,58432.0,0.4518]
[1725274230031,0.070294,58433.0,58432.0,0.50308993]
[1725274230236,0.070294,58433.0,58432.0,0.4518]
[1725274230733,0.070294,58433.0,58432.0,0.50309233]
[1725274231641,0.070294,58433.0,58432.0,0.50306891]
[1725274231845,0.070294,58433.0,58432.0,0.50306585]
[1725274232144,0.070294,58433.0,58432.0,0.4518]
[1725274232335,0.070294,58433.0,58432.0,0.50306493]
[1725274232536,0.070294,58433.0,58432.0,0.4518]
[1725274233247,0.070294,58433.0,58432.0,0.511695]
[1725274237941,0.070294,58433.0,58432.0,0.4518]
[1725274244145,0.070294,58433.0,58432.0,0.58221267]
[1725274245038,0.070294,58433.0,58432.0,0.49221267]
[1725274245755,0.155857,58433.0,58432.0,0.49221267]
[1725274250057,0.155857,58433.0,58432.0,0.13141267]
[1725274250355,0.155857,58433.0,58432.0,0.49221267]
[1725274251153,0.155857,58433.0,58432.0,0.3618]
[1725274252958,0.155857,58433.0,58432.0,0.001]
[1725274253149,0.155857,58433.0,58432.0,0.3618]
[1725274253552,0.070294,58433.0,58432.0,0.3618]
[1725274255476,0.070294,58433.0,58432.0,0.447365]
[1725274259256,0.070294,58433.0,58432.0,0.57777422]
[1725274260564,0.070294,58433.0,58432.0,0.49220922]
[1725274262053,0.980294,58433.0,58432.0,0.49220922]
[1725274262557,0.070294,58433.0,58432.0,0.4922161]
[1725274262868,0.516657,58433.0,58432.0,0.216816]
[1725274263054,0.516657,58433.0,58425.0,0.0853999]
[1725274263055,0.085569,58429.0,58425.0,0.0853999]
[1725274263363,0.085569,58429.0,58420.0,0.10244273]
[1725274263364,0.4512,58426.0,58420.0,0.05121637]
[1725274263561,0.085582,58420.0,58418.0,0.05121637]
[1725274263765,0.2279,58419.0,58418.0,0.05121637]
[1725274263970,0.2279,58419.0,58415.0,0.06837538]
[1725274263971,0.085588,58416.0,58415.0,0.06837538]
[1725274264166,0.17118,58415.0,58414.0,0.06837538]
[1725274264467,0.17118,58415.0,58411.0,0.02568]
[1725274264468,0.085594,58412.0,58411.0,0.09391483]
[1725274264668,0.175994,58412.0,58411.0,0.09391483]
[1725274265366,0.175994,58412.0,58411.0,0.02568]
[1725274266157,0.085994,58412.0,58411.0,0.00968]
[1725274266664,0.086994,58412.0,58411.0,0.00968]
[1725274269073,0.09056832,58412.0,58411.0,0.00968]
[1725274270967,0.00497432,58412.0,58411.0,0.00968]
[1725274272571,0.00497432,58412.0,58411.0,0.095276]
[1725274275071,0.09056832,58412.0,58411.0,0.00968]
[1725274275271,0.18056832,58412.0,58411.0,0.00968]
[1725274275460,0.09056832,58412.0,58411.0,0.00968]
[1725274284774,0.17616232,58412.0,58411.0,0.00968]
[1725274285882,0.17516232,58412.0,58411.0,0.00968]
[1725274286279,0.08956832,58412.0,58411.0,0.00968]
[1725274288475,0.08956832,58412.0,58411.0,0.06081131]
[1725274288680,0.08956832,58412.0,58411.0,0.00968]
[1725274293379,0.69316832,58412.0,58411.0,0.00968]
[1725274293582,1.46435632,58412.0,58411.0,0.00968]
[1725274296070,1.37435632,58412.0,58411.0,0.00968]
[1725274296269,0.86435632,58412.0,58411.0,0.00968]
[1725274297981,1.46435632,58412.0,58411.0,0.00968]
[1725274300378,0.08956832,58412.0,58411.0,0.00968]
[1725274300686,0.08956832,58412.0,58411.0,0.185276]
[1725274300870,0.00397432,58412.0,58411.0,0.185276]
[1725274302978,0.00397432,58412.0,58411.0,0.25351083]
[1725274303177,0.00397432,58412.0,58411.0,0.185276]
[1725274312089,0.08956832,58412.0,58411.0,0.00968]
[1725274316685,0.17516232,58412.0,58411.0,0.00968]
[1725274317188,0.17516232,58412.0,58411.0,0.09968]
[1725274317483,0.17516232,58412.0,58411.0,0.00968]
[1725274319589,1.08516232,58412.0,58411.0,0.00968]
[1725274320087,1.17516232,58412.0,58411.0,0.00968]
[1725274320700,1.68876232,58412.0,58411.0,0.00968]
[1725274320997,1.77435632,58412.0,58411.0,0.00968]
[1725274321194,2.37435632,58412.0,58411.0,0.00968]
[1725274326989,1.28876232,58412.0,58411.0,0.00968]
[1725274327192,0.26516232,58412.0,58411.0,0.00968]
[1725274329299,0.08956832,58412.0,58411.0,0.00968]
[1725274330001,0.00397432,58412.0,58411.0,0.095276]
[1725274330199,0.00397432,58412.0,58411.0,0.456076]
[1725274333804,0.00397432,58412.0,58411.0,0.546076]
[1725274334410,0.0004,58412.0,58411.0,0.546076]
[1725274334604,0.0004,58412.0,58411.0,1.659676]
[1725274335503,0.0004,58412.0,58411.0,0.546076]
[1725274335707,0.0004,58412.0,58411.0,1.659676]
[1725274336904,0.0004,58412.0,58411.0,0.546076]
[1725274339709,0.0004,58412.0,58411.0,1.059676]
[1725274339903,0.00025673,58424.0,58412.0,0.51356]
[1725274340211,0.00025673,58424.0,58423.0,0.536778]
[1725274340413,0.00025673,58424.0,58423.0,1.277178]
[1725274340714,0.00025673,58424.0,58423.0,1.790658]
[1725274342916,0.00525673,58424.0,58423.0,1.790658]
[1725274344110,0.00525673,58424.0,58423.0,1.277178]
[1725274344414,0.00525673,58424.0,58423.0,0.677178]
[1725274344913,0.00525673,58424.0,58423.0,0.68076356]
[1725274349006,0.00525673,58424.0,58423.0,1.19424356]
[1725274349207,0.00525673,58424.0,58423.0,1.79424356]
[1725274349411,0.0934,58436.0,58423.0,1.70866556]
[1725274349618,0.085558,58437.0,58435.0,0.0904]
[1725274349817,0.181542,58448.0,58444.0,0.085546]
[1725274350007,0.181542,58448.0,58447.0,0.4512]
[1725274350212,0.08554,58450.0,58447.0,0.4508]
[1725274350412,0.08554,58450.0,58449.0,0.09]
[1725274350413,0.085539,58450.0,58449.0,0.09]
[1725274350606,0.085539,58450.0,58449.0,0.0904]
[1725274351506,0.085539,58450.0,58449.0,0.0004]
[1725274351816,0.099539,58450.0,58449.0,0.0004]
[1725274352204,0.185078,58450.0,58449.0,0.0004]
[1725274352606,0.232878,58450.0,58449.0,0.0004]
[1725274358221,1.346158,58450.0,58449.0,0.0004]
[1725274358423,0.746158,58450.0,58449.0,0.0004]
[1725274358719,1.346158,58450.0,58449.0,0.0004]
[1725274359019,0.746158,58450.0,58449.0,0.0004]
[1725274359519,1.346158,58450.0,58449.0,0.0004]
[1725274359727,0.232878,58450.0,58449.0,0.0004]
[1725274361015,0.014,58450.0,58449.0,1.20674]
[1725274361211,0.014,58450.0,58449.0,1.72002]
[1725274362825,0.014,58450.0,58449.0,0.60674]
[1725274363326,0.014,58450.0,58449.0,1.56002]
[1725274363523,0.014,58450.0,58449.0,0.60674]
[1725274363731,0.014,58450.0,58449.0,1.12002]
[1725274364826,0.0039398,58454.0,58453.0,0.085534]
[1725274365125,0.00025673,58454.0,58453.0,0.245934]
[1725274366117,0.00725673,58454.0,58453.0,0.246934]
[1725274367524,0.00025673,58454.0,58453.0,0.245934]
[1725274367723,0.00425673,58454.0,58453.0,0.245934]
[1725274368121,0.00425673,58454.0,58453.0,0.97115821]
[1725274370526,0.00425673,58454.0,58453.0,0.967534]
[1725274371626,0.085522,58461.0,58453.0,0.967534]
[1725274371825,0.085522,58461.0,58460.0,0.0004]
[1725274372027,0.08911691,58461.0,58460.0,0.0004]
[1725274373126,0.17463991,58461.0,58460.0,0.0004]
[1725274373332,0.21983991,58461.0,58460.0,0.0004]
[1725274374123,0.17106,58456.0,58454.0,0.05090506]
[1725274374323,0.17106,58456.0,58453.0,0.3608]
[1725274374324,0.171066,58454.0,58453.0,0.3608]
[1725274374630,1.081466,58454.0,58453.0,0.3608]
[1725274374829,1.081066,58454.0,58453.0,0.3608]
[1725274375432,1.080066,58454.0,58453.0,0.3608]
[1725274376032,1.080066,58454.0,58453.0,0.3618]
[1725274376033,1.093066,58454.0,58453.0,0.3618]
[1725274377227,1.139866,58454.0,58453.0,0.3618]
[1725274378435,0.098533,58454.0,58453.0,0.3618]
[1725274378643,0.013,58454.0,58453.0,0.447334]
[1725274378835,0.013,58454.0,58453.0,0.538734]
[1725274379029,0.013,58454.0,58453.0,0.60696883]
[1725274379337,0.013,58454.0,58453.0,0.538734]
[1725274379640,0.01653486,58454.0,58453.0,0.3618]
[1725274380135,0.01653486,58454.0,58453.0,0.447334]
[1725274380532,0.01653486,58454.0,58453.0,0.3618]
[1725274381539,0.013,58454.0,58453.0,0.3618]
[1725274382843,0.00025673,58466.0,58454.0,0.51324]
[1725274383142,0.00025673,58466.0,58465.0,0.5212]
[1725274384439,0.00525673,58466.0,58465.0,0.5212]
[1725274384844,0.0088333,58466.0,58465.0,0.5222]
[1725274385437,0.0088333,58466.0,58465.0,0.607716]
[1725274386138,0.0038333,58466.0,58465.0,0.607716]
[1725274387636,0.0078333,58466.0,58465.0,0.607716]
[1725274388444,0.0493,58474.0,58465.0,0.883]
[1725274388649,0.0493,58474.0,58473.0,0.5212]
[1725274389545,0.00354734,58474.0,58473.0,0.606705]
[1725274389749,0.085498,58478.0,58473.0,0.606705]
[1725274390042,0.085498,58478.0,58477.0,0.0004]
[1725274390747,0.003858,58479.0,58477.0,0.245898]
[1725274390942,0.00025673,58479.0,58478.0,0.3612]
[1725274391250,0.00025673,58479.0,58478.0,0.446697]
[1725274392052,0.00125673,58479.0,58478.0,0.446697]
[1725274393547,0.00025673,58479.0,58478.0,0.446697]
[1725274393744,0.00125673,58479.0,58478.0,0.446697]
[1725274394144,0.00025673,58479.0,58478.0,0.3612]
[1725274394451,0.00125673,58479.0,58478.0,0.3622]
[1725274395849,0.08675273,58479.0,58478.0,0.3622]
[1725274397351,0.17224873,58479.0,58478.0,0.3622]
[1725274399873,0.17224873,58479.0,58478.0,0.0014]
[1725274402478,0.22474209,58479.0,58478.0,0.0014]
[1725274402783,0.31023809,58479.0,58478.0,0.0014]
[1725274403374,1.22023809,58479.0,58478.0,0.0014]
[1725274404985,1.28157561,58479.0,58478.0,0.0014]
[1725274406786,0.171,58476.0,58470.0,0.3608]
[1725274406980,0.1604,58473.0,58470.0,0.3608]
[1725274407284,0.46940836,58473.0,58470.0,0.3608]
[1725274407579,0.98248836,58473.0,58470.0,0.3608]
[1725274407777,1.58248836,58473.0,58470.0,0.3608]
[1725274407976,1.06940836,58473.0,58470.0,0.3608]
[1725274408486,0.98248836,58473.0,58470.0,0.3608]
[1725274409377,1.95214059,58473.0,58472.0,5.2e-07]
[1725274409577,1.95314059,58473.0,58472.0,5.2e-07]
[1725274409777,1.891795,58473.0,58472.0,5.2e-07]
[1725274410288,1.893795,58473.0,58472.0,5.2e-07]
[1725274410987,0.171038,58463.0,58462.0,0.05101378]
[1725274411184,0.171038,58463.0,58460.0,0.16]
[1725274411185,0.171044,58461.0,58460.0,0.16]
[1725274411380,0.171444,58461.0,58460.0,0.16]
[1725274411580,0.171044,58461.0,58460.0,0.16]
[1725274412087,0.171044,58461.0,58460.0,0.06801838]
[1725274412884,0.170044,58461.0,58460.0,0.06801838]
[1725274414181,0.174044,58461.0,58460.0,0.001]
[1725274415792,1.372726,58461.0,58460.0,0.001]
[1725274415987,0.8631113,58461.0,58460.0,0.001]
[1725274416293,1.3762713,58461.0,58460.0,0.001]
[1725274416593,1.6862713,58461.0,58460.0,0.001]
[1725274417087,1.1731113,58461.0,58460.0,0.001]
[1725274417484,1.6862713,58461.0,58460.0,0.001]
[1725274417694,1.1731113,58461.0,58460.0,0.001]
[1725274418780,2.4462713,58461.0,58460.0,0.001]
[1725274420287,0.256581,58458.0,58457.0,0.3608]
[1725274420492,0.26554436,58458.0,58457.0,0.3608]
[1725274420687,0.25659,58456.0,58455.0,0.00025652]
[1725274420991,0.41699,58456.0,58455.0,0.00025652]
[1725274422593,1.53019,58456.0,58455.0,0.00025652]
[1725274423097,1.01699,58456.0,58455.0,0.00025652]
[1725274423392,1.53019,58456.0,58455.0,0.00025652]
[1725274423784,1.53865664,58456.0,58455.0,0.00025652]
[1725274423989,1.54165664,58456.0,58455.0,0.00025652]
[1725274429487,0.94165664,58456.0,58455.0,0.00025652]
[1725274432798,0.42845664,58456.0,58455.0,0.00025652]
[1725274434095,1.54165664,58456.0,58455.0,0.00025652]
[1725274435103,1.59417296,58456.0,58455.0,0.00025652]
[1725274437790,1.594173,58456.0,58455.0,0.00025652]
[1725274437997,1.080973,58456.0,58455.0,0.00025652]
[1725274438396,1.594173,58456.0,58455.0,0.00025652]
[1725274438600,0.480973,58456.0,58455.0,0.00025652]
[1725274438802,0.42845664,58456.0,58455.0,0.00025652]
[1725274440812,0.08893,58456.0,58455.0,0.00025652]
[1725274440996,0.08893,58456.0,58455.0,0.59898752]
[1725274440997,0.0034,58456.0,58455.0,0.59898752]
[1725274441195,0.0034,58456.0,58455.0,1.19898752]
[1725274447006,0.05590166,58456.0,58455.0,1.19898752]
[1725274449409,0.0004,58463.0,58462.0,0.085521]
[1725274449613,0.05289831,58463.0,58462.0,1.480681]
[1725274449918,0.05289831,58463.0,58462.0,2.166202]
[1725274450598,0.05249831,58463.0,58462.0,2.166202]
[1725274451115,0.05749831,58463.0,58462.0,2.167202]
[1725274452205,0.085496,58479.0,58476.0,0.085499]
[1725274452404,0.05249065,58478.0,58477.0,0.3608]
[1725274453602,0.05249065,58478.0,58477.0,0.446299]
[1725274454006,0.01006521,58480.0,58478.0,0.085497]
[1725274454301,0.01006521,58480.0,58479.0,0.0004]
[1725274455814,0.01006521,58480.0,58479.0,0.0014]
[1725274456517,0.09556021,58480.0,58479.0,0.0014]
[1725274461222,0.09556021,58480.0,58479.0,0.0004]
[1725274461509,0.18105521,58480.0,58479.0,0.0014]
[1725274461715,0.26655021,58480.0,58479.0,0.0014]
[1725274462411,0.26655021,58480.0,58479.0,0.0004]
[1725274462613,0.26655021,58480.0,58479.0,0.0014]
[1725274464018,0.26655021,58480.0,58479.0,0.0004]